[Event "87th Spanish Championship 2022"]
[Site "Linares"]
[Date "2022.08.13"]
[Round "3.6"]
[White "Cuenca Jimenez, Jose Fernando"]
[Black "Vega Gutierrez, Sabrina"]
[Result "1/2-1/2"]
[ECO "E06"]
[WhiteElo "2552"]
[BlackElo "2366"]
[Annotator "TA"]
[PlyCount "127"]
[EventDate "2022.08.11"]
[EventType "swiss"]
[EventCountry "ESP"]
[SourceTitle "playchess.com"]
[Source "ChessBase"]
[SourceQuality "1"]
[TimeControl "5400+30"]

{[%evp 15,127,4,17,14,23,21,73,48,82,82,79,83,83,83,80,84,102,48,48,58,57,50,70,61,61,38,54,48,52,54,58,55,60,57,56,59,62,60,69,61,75,72,72,68,102,104,94,91,92,0,63,63,58,54,77,75,75,75,76,73,75,75,80,76,71,70,75,84,79,81,82,61,72,61,75,72,93,94,95,89,89,70,89,89,82,82,85,74,89,89,75,85,90,89,89,89,89,0,0,0,0,0,0,0,0,0,0,0,0,0,0,0,0,0]} 1. d4 {[%emt 0:00:06]} d5 {[%emt 0:00:06]} 2. c4 {[%emt 0:00:26]} e6 {[%emt 0:00:06]} 3. Nf3 {[%emt 0:00:30]} Nf6 {[%emt 0:00:09]} 4. g3 {[%emt 0:01:24]} Be7 {[%emt 0:00:07]} 5. Bg2 {[%emt 0:00:08]} O-O {[%emt 0:00:09]} 6. O-O {[%emt 0:00:51]} c6 {[%emt 0:00:11]} 7. Qc2 {[%emt 0:00:30]} b6 $1 {[%emt 0:00:20][%mdl 4] is more profitable than 7...Nbd7 at the moment.} 8. Rd1 {[%emt 0:02:12]} Nbd7 {[%emt 0:00:15]} 9. Nbd2 {[%emt 0:03:44] E08: Closed Catalan: Main Line: 7 Qc2.} Ba6 {[%emt 0:00:12]} 10. e4 {[%emt 0:01:45]} dxc4 {[%emt 0:26:00]} (10... Nxe4 $11 11. Nxe4 dxe4) 11. Nxc4 $16 {[%emt 0:04:42] White is better.} Bxc4 {[%emt 0:05:50]} 12. Qxc4 {[%emt 0:00:06]} Nxe4 {[%emt 0:00:05]} 13. Qxc6 {[%emt 0:03:04]} Nef6 {[%emt 0:02:08]} 14. Ne5 {[%emt 0:05:54]} Rc8 {[%emt 0:06:45] [#]} 15. Qa4 {[%emt 0:01:03] 0x0.00144e2c9f09dp-1022s more active pieces.} b5 {[%emt 0:02:03] [#]} 16. Qxb5 $146 {[%emt 0:32:48]} (16. Qb3 $16) ({Predecessor:} 16. Qb3 Qb6 17. Be3 a5 18. a4 b4 19. Rac1 Qa6 20. Nc6 Bd6 21. Bf4 Bxf4 22. Ne7+ {1-0 (36) Andreasen,P (2303)-Simonsen,H (2295) Vagur 2006}) 16... Nxe5 $14 {[%emt 0:00:15]} 17. Qxe5 {[%emt 0:00:04]} Rc2 {[%emt 0:00:13][%cal Oc2f2]} 18. Qb5 {[%emt 0:02:55]} Qb8 {[%emt 0:12:02]} 19. Qxb8 {[%emt 0:04:57]} Rxb8 {[%emt 0:00:13]} 20. h3 {[%emt 0:10:06]} h6 {[%emt 0:03:04]} 21. Rb1 {[%emt 0:09:35]} Ba3 {[%emt 0:04:33]} 22. Bf1 $1 {[%emt 0:02:35]} Bd6 {[%emt 0:03:54]} 23. Bd3 {[%emt 0:00:35]} Rcc8 {[%emt 0:00:24]} 24. Bd2 {[%emt 0:01:20]} Nd5 {[%emt 0:00:06]} 25. Rbc1 {[%emt 0:04:35]} Rxc1 {[%emt 0:05:21]} 26. Bxc1 {[%emt 0:00:16]} ({But not} 26. Rxc1 Rxb2 27. Rc8+ Bf8 $11) 26... Be7 {[%emt 0:00:15]} 27. Bc4 {[%emt 0:03:05]} Nb6 {[%emt 0:04:58]} 28. Bf4 {[%emt 0:00:20]} Rd8 {[%emt 0:02:26]} 29. b3 {[%emt 0:01:23]} Bf6 {[%emt 0:00:44]} 30. Be3 {[%emt 0:00:06]} Rc8 {[%emt 0:09:24]} 31. Rc1 {[%emt 0:01:14]} Rd8 {[%emt 0:00:19]} 32. Rd1 {[%emt 0:01:28]} Rc8 $1 {[%emt 0:00:02]} 33. Bd3 {[%emt 0:02:11]} Nd5 {[%emt 0:00:59]} 34. Kg2 {[%emt 0:00:24]} e5 {[%emt 0:02:31]} 35. dxe5 {[%emt 0:00:32]} Nxe3+ {[%emt 0:00:03]} 36. fxe3 {[%emt 0:00:03]} Bxe5 $16 {[%emt 0:00:11][%mdl 4096] Endgame KRB-KRB} 37. Bf5 {[%emt 0:00:13]} Re8 {[%emt 0:03:31]} 38. Rd7 {[%emt 0:00:03]} a5 {[%emt 0:01:23]} 39. Kf3 {[%emt 0:01:22]} Bc3 {[%emt 0:00:48]} 40. Bd3 {[%emt 0:00:40]} Bb4 {[%emt 0:00:06]} 41. Bc4 {[%emt 0:00:55]} Re7 {[%emt 0:00:06]} 42. Rd8+ {[%emt 0:00:06]} Kh7 {[%emt 0:00:03]} 43. e4 {[%emt 0:00:19]} g6 {[%emt 0:01:30]} 44. Rd5 {[%emt 0:00:18]} Kg7 {[%emt 0:04:38]} 45. a3 {[%emt 0:00:09]} Be1 {[%emt 0:03:59]} 46. g4 {[%emt 0:00:43]} Ra7 {[%emt 0:00:17]} 47. Bd3 {[%emt 0:01:34]} Bc3 {[%emt 0:00:17]} 48. Rb5 {[%emt 0:00:20]} Bb2 {[%emt 0:00:16]} 49. a4 {[%emt 0:00:44]} Bc3 {[%emt 0:00:13]} 50. Bc4 {[%emt 0:00:25]} Rd7 {[%emt 0:01:10]} 51. Bd5 {[%emt 0:00:08]} Kf6 {[%emt 0:00:28]} 52. h4 {[%emt 0:00:50]} Rc7 {[%emt 0:00:20]} 53. Ke3 {[%emt 0:00:39]} Bb4 {[%emt 0:00:39]} 54. Bc4 {[%emt 0:00:29]} Rd7 {[%emt 0:00:46]} 55. e5+ {[%emt 0:00:10]} Kg7 {[%emt 0:00:30]} 56. Rxb4 {[%emt 0:00:46]} axb4 {[%emt 0:00:03] KR-KB. The position is equal.} 57. g5 {[%emt 0:00:11]} hxg5 {[%emt 0:00:13]} 58. hxg5 {[%emt 0:00:01]} Kf8 {[%emt 0:00:42]} 59. a5 {[%emt 0:00:17] [#] Hoping for a6.} Ke7 {[%emt 0:00:18]} 60. a6 {[%emt 0:00:18] Strongly threatening Ke4.} Kd8 {[%emt 0:00:31]} 61. Bb5 {[%emt 0:00:47]} Re7 {[%emt 0:00:51]} 62. Kd4 {[%emt 0:00:30] And now Bc6 would win.} Kc7 {[%emt 0:00:01] Inhibits Bc6.} 63. Bc4 {[%emt 0:00:48]} Kb6 {[%emt 0:00:48]} 64. Ke4 {Weighted Error Value: White=0.07 (flawless) /Black=0.06 (flawless)} 1/2-1/2

[Event "87th Spanish Championship 2022"]
[Site "Linares"]
[Date "2022.08.13"]
[Round "3.7"]
[White "Garriga Cazorla, Pere"]
[Black "Garcia Martin, Marta"]
[Result "1/2-1/2"]
[ECO "A13"]
[WhiteElo "2505"]
[BlackElo "2305"]
[Annotator "TA"]
[PlyCount "161"]
[EventDate "2022.08.11"]
[EventType "swiss"]
[EventCountry "ESP"]
[SourceTitle "playchess.com"]
[Source "ChessBase"]
[SourceQuality "1"]
[TimeControl "5400+30"]

{[%evp 9,161,-27,-20,-25,-14,-28,-20,-81,-74,-85,-86,-73,-78,-82,-78,-115,-81,-139,-105,-119,-21,-155,-131,-149,-147,-212,-212,-207,-159,-187,-135,-172,-50,-60,-52,-183,-170,-216,-237,-228,-179,-266,-262,-271,-260,-266,-270,-268,-252,-306,-269,-279,-272,-321,-306,-562,-562,-867,-603,-606,-549,-646,-645,-648,-568,-1029,-1018,-923,-65,-845,-559,-488,-174,-447,-463,-531,-216,-260,-188,-196,-189,-441,-422,-396,323,308,281,270,300,300,244,212,203,0,0,-40,0,-1041,-12,-12,-12,-12,-12,-12,-12,-12,-12,-12,-12,-12,-12,-12,-12,-12,-12,-12,-12,-12,-12,-20,-12,-20,-20,-28,-20,-484,-484,-484,-484,-484,-484,-484,0,-484,-484,-484,-484,-484,-484,-484,-477,-477,-477,-484,-477,-484,-477,-484,-477,-484,-40,-491,-8,-8]} 1. Nf3 {[%emt 0:00:04]} d5 {[%emt 0:00:07]} 2. c4 {[%emt 0:00:50]} e6 {[%emt 0:00:23]} 3. g3 {[%emt 0:00:08]} dxc4 {[%emt 0:01:11]} 4. Bg2 {[%emt 0:01:28]} a6 {[%emt 0:01:25]} 5. a4 {[%emt 0:03:39]} Nc6 {[%emt 0:17:05]} 6. b3 {[%emt 0:07:04] A13: English Opening: 1...e6.} cxb3 {[%emt 0:01:25]} 7. Qxb3 {[%emt 0:01:48] [#]} e5 $146 {[%emt 0:25:01] Threatens to win with ...e4.} ({Predecessor:} 7... Nf6 8. O-O e5 9. Ng5 Qd7 10. Nc3 Na5 11. Qa2 Bd6 12. Nd5 Nxd5 13. Qxd5 Nc6 {½-½ (41) Zakaryan,D (2350)-Konaplev,A (2314) Sochi 2019}) 8. Bb2 {[%emt 0:07:02]} (8. O-O $11) 8... Be6 $1 $17 {[%emt 0:01:11]} 9. Qc2 {[%emt 0:03:52]} (9. Qxb7 $2 Bd5 10. Nxe5 Bxg2 $17) 9... f6 {[%emt 0:14:46]} 10. O-O {[%emt 0:03:28][%cal Od2d4]} Nb4 {[%emt 0:03:23]} 11. Qc1 {[%emt 0:12:28]} c5 {[%emt 0:00:13] Prevents d4.} 12. d3 {[%emt 0:00:06]} Rc8 {[%emt 0:03:29]} 13. Nh4 {[%emt 0:02:45]} (13. Nfd2 $142) 13... g5 {[%emt 0:05:03]} 14. Nf3 {[%emt 0:04:11]} Ne7 {[%emt 0:01:53]} (14... c4 $6 15. dxc4 Rxc4 16. Nc3 $11) (14... b6 $17 {Threatening ...Ne7.} 15. Nfd2 Ne7) 15. Nfd2 {[%emt 0:02:13]} (15. Nxe5 $1 $11 fxe5 16. Bxe5) 15... Nec6 {[%emt 0:01:16][%cal Be7c6,Bc6d4,Bd4c2][%mdl 32]} 16. Nc3 {[%emt 0:01:14]} h5 {[%emt 0:03:13]} 17. Nce4 {[%emt 0:05:22]} (17. Nc4 $17) 17... Nd4 $19 {[%emt 0:03:50]} 18. Qd1 {[%emt 0:00:47]} Be7 {[%emt 0:04:37]} 19. Nc4 {[%emt 0:05:52]} h4 {[%emt 0:02:05]} (19... b5 $1 $19 {[%cal Rb5c4]} 20. axb5 axb5) 20. a5 {[%emt 0:03:13]} hxg3 {[%emt 0:06:45]} (20... Rc7 $19 21. Bc3 h3) 21. fxg3 $15 {[%emt 0:02:36]} Ndc2 {[%emt 0:00:49]} 22. Nb6 {[%emt 0:08:20]} ({Better is} 22. Rc1 $15 Bxc4 23. dxc4) 22... Rc6 $19 {[%emt 0:01:34]} (22... Nxa1 23. Nxc8 Qxc8 24. Qxa1 $11) 23. Rf3 {[%emt 0:06:37]} ({Of course not} 23. Nxg5 Rxb6 24. axb6 fxg5 25. Bxe5 Rh6 26. Bxb7 Qxb6 $19) (23. Rf2 {was worth a try.}) 23... Nxa1 {[%emt 0:00:38]} 24. Qxa1 {[%emt 0:00:06][%cal Oe4f6]} Nc2 {[%emt 0:00:34]} 25. Qf1 {[%emt 0:00:06]} (25. Qb1 $142 Nb4 26. Rf1) 25... Bg4 {[%emt 0:00:25]} 26. Nc4 {[%emt 0:02:44]} Bxf3 {[%emt 0:00:24]} 27. Bxf3 {[%emt 0:00:02]} Nd4 {[%emt 0:00:34]} 28. Bg2 {[%emt 0:00:15]} Qd7 {[%emt 0:00:35]} 29. e3 {[%emt 0:01:29]} Nb5 {[%emt 0:00:32]} 30. h3 {[%emt 0:02:58]} O-O {[%emt 0:00:30]} 31. g4 {[%emt 0:00:52]} Rd8 {[%emt 0:00:26]} 32. Nb6 $2 {[%emt 0:01:59]} (32. Nf2 {might work better.}) 32... Qxd3 {[%emt 0:00:20]} 33. Qf2 {[%emt 0:00:41]} Qd1+ {[%emt 0:00:44]} 34. Kh2 {[%emt 0:00:02]} Qb3 {[%emt 0:00:30]} 35. Qf5 {[%emt 0:02:03]} Qf7 {[%emt 0:00:23] Prevents Qg6+.} ({Weaker is} 35... Qxb2 36. Qg6+ Kh8 37. Qh6+ Kg8 38. Qg6+ Kh8 39. Qh6+ Kg8 40. Qg6+ $11) 36. Nd7 {[%emt 0:00:04]} Kg7 {[%emt 0:00:37]} 37. Nxe5 {[%emt 0:06:57]} fxe5 {[%emt 0:00:26]} 38. Qxe5+ {[%emt 0:00:02]} Rf6 $2 {[%emt 0:00:24]} 39. h4 $2 {[%emt 0:01:01][%mdl 8192]} (39. Nxf6 $15 Bd6 40. Ne8+ Kh6 41. Nxd6 Nxd6 42. Bd5) 39... Rd5 {[%emt 0:00:40]} 40. Qg3 {[%emt 0:00:59] [#]} Nd6 $2 {[%emt 0:00:31]} 41. Nxg5 {[%emt 0:01:04]} (41. Bxf6+ Bxf6 42. Nxd6 gxh4 43. Qf4 Rxd6 44. Qxd6) 41... Qg8 {[%emt 0:00:25][%cal Od5d2]} 42. Qf2 {[%emt 0:01:14]} c4 {[%emt 0:00:31]} 43. Nh3 {[%emt 0:00:51]} c3 {[%emt 0:00:34]} 44. Bxc3 {[%emt 0:00:06]} Nb5 $1 {[%emt 0:00:29]} 45. Bb2 {[%emt 0:00:33] This bishop pair is nice.} (45. Bxf6+ {was the only chance.} Bxf6 46. Bxd5 Qxd5 47. Nf4) 45... Bd6+ {[%emt 0:00:31]} 46. Nf4 {[%emt 0:00:21] [#] Black must now prevent Kh3.} Bxf4+ $4 {[%emt 0:00:29][%mdl 8192]} (46... Rd4 $1 $19 {[%mdl 512] and all is fine.} 47. g5 (47. Bxd4 Nxd4) 47... Rf7 $1) 47. Qxf4 $18 {[%emt 0:00:27][%mdl 64] Pin} Nd4 {[%emt 0:00:30]} 48. Bxd4 {[%emt 0:00:43] Really sharp!} Rxd4 {[%emt 0:00:04]} 49. Qxd4 {[%emt 0:00:06][%mdl 4096] Endgame White wants to mate with g5. KQR-KQB} Qb8+ {[%emt 0:00:47]} 50. Kh1 {[%emt 0:00:29] Threatening mate with g5.} Qd6 {[%emt 0:00:40] [#]} 51. Qe4 {[%emt 0:01:32]} ({And not} 51. Bxb7 Qxd4 52. exd4 Rf4 $11) ({Only move:} 51. Bd5 $1 $18 {Strongly threatening g5.} Kf8 52. Kg2 (52. Bxb7 Qxd4 53. exd4 Rf4 $11)) 51... Rf7 $11 {[%emt 0:00:30]} 52. h5 {[%emt 0:00:58]} Qf6 {[%emt 0:00:19]} 53. Qf4 $2 {[%emt 0:00:37][%mdl 8192]} (53. Kh2 $11) 53... Qxf4 $2 {[%emt 0:00:36]} ({Black should try} 53... Qa1+ $19 54. Kh2 Rxf4 55. exf4 Qxa5) 54. exf4 {[%emt 0:00:08]} Rxf4 {[%emt 0:00:02] aiming for ...Rb4.} 55. Bxb7 {[%emt 0:00:16]} Rxg4 {[%emt 0:00:11]} 56. Bxa6 $19 {[%emt 0:00:07] KR-KB} Rh4+ {[%emt 0:00:17]} 57. Kg2 {[%emt 0:00:03]} Rxh5 {[%emt 0:00:04]} 58. Kf3 {[%emt 0:00:13]} Rxa5 {[%emt 0:00:04]} 59. Bc4 {[%emt 0:00:15]} Kf6 {[%emt 0:00:06]} 60. Ke4 {[%emt 0:00:15]} Ke7 {[%emt 0:00:32]} 61. Kd4 {[%emt 0:00:08]} Kd6 {[%emt 0:00:07]} 62. Bb3 {[%emt 0:00:50]} Rh5 {[%emt 0:00:22]} 63. Bc2 {[%emt 0:00:27]} Rh4+ {[%emt 0:00:07]} 64. Kc3 {[%emt 0:00:06]} Kc5 {[%emt 0:00:04]} 65. Bg6 {[%emt 0:00:15]} Rh3+ {[%emt 0:00:11]} 66. Kb2 {[%emt 0:00:04]} Kb4 {[%emt 0:00:22]} 67. Ka1 $2 {[%emt 0:00:23][%mdl 8192]} (67. Kc2 $11) 67... Kc3 {[%emt 0:00:47]} 68. Bf7 {[%emt 0:00:55]} Rh1+ {[%emt 0:01:42]} 69. Ka2 {[%emt 0:00:19]} Rh2+ {[%emt 0:00:05]} 70. Ka1 {[%emt 0:00:05]} Rh1+ {[%emt 0:01:29]} 71. Ka2 {[%emt 0:00:05]} Rh7 {[%emt 0:00:21]} 72. Be6 {[%emt 0:00:43]} Ra7+ {[%emt 0:00:20]} 73. Kb1 {[%emt 0:00:05]} Rb7+ {[%emt 0:00:22]} 74. Ka1 {[%emt 0:00:07]} Kc2 {[%emt 0:01:00]} 75. Bf5+ {[%emt 0:00:05]} Kb3 {[%emt 0:00:12]} 76. Be6+ {[%emt 0:00:41]} Ka3 {[%emt 0:00:32]} 77. Bf5 {[%emt 0:00:06]} Rf7 {[%emt 0:00:30]} 78. Be4 {[%emt 0:00:14]} Rf4 {[%emt 0:00:47]} 79. Bh7 {[%emt 0:00:16]} Rf1+ {[%emt 0:00:50]} 80. Bb1 {[%emt 0:00:07]} Rxb1+ $2 {[%emt 0:00:11]} 81. Kxb1 {[%emt 0:00:05] Both players deserved the win here.  Weighted Error Value: White=0.80/Black=0.45} 1/2-1/2

[Event "87th Spanish Championship 2022"]
[Site "Linares"]
[Date "2022.08.13"]
[Round "3.8"]
[White "Gonzalez Guedes, Iyan"]
[Black "Lopez Martinez, Josep Manuel"]
[Result "0-1"]
[ECO "C02"]
[WhiteElo "2250"]
[BlackElo "2486"]
[Annotator "TA"]
[PlyCount "104"]
[EventDate "2022.08.11"]
[EventType "swiss"]
[EventCountry "ESP"]
[SourceTitle "playchess.com"]
[Source "ChessBase"]
[SourceQuality "1"]
[TimeControl "5400+30"]

{[%evp 15,104,-16,-12,-18,-9,-22,-22,-28,-22,-22,-22,-64,-29,-51,0,-5,-6,-31,-4,-7,-7,-43,-11,-19,0,0,0,0,14,0,8,0,7,0,14,0,0,0,0,-10,-10,-10,-10,-10,0,0,0,-18,-22,-8,0,-39,-39,-41,-42,-51,-31,-52,-50,-51,-48,-51,-47,-41,-38,-48,-56,-67,-56,-104,-94,-84,-91,-116,-110,-189,-186,-204,-244,-196,-209,-359,-353,-379,-378,-512,-502,-1619,-1592,-1433,-1375]} 1. e4 {[%emt 0:00:01]} e6 {[%emt 0:03:59]} 2. d4 {[%emt 0:00:17]} d5 {[%emt 0:00:09]} 3. e5 {[%emt 0:00:09]} c5 {[%emt 0:00:22]} 4. c3 {[%emt 0:00:02]} Nc6 {[%emt 0:01:30]} 5. Nf3 {[%emt 0:00:16]} Bd7 {[%emt 0:03:02]} 6. a3 {[%emt 0:01:13]} c4 {[%emt 0:03:52]} 7. Nbd2 {[%emt 0:00:16] 7.g3 is not played anymore.} Na5 {[%emt 0:09:02]} 8. g3 {[%emt 0:00:39]} Ne7 {[%emt 0:01:25]} 9. h4 {[%emt 0:00:19] C02: French: Advance Variation.} Nc8 {[%emt 0:00:14]} 10. Bh3 {[%emt 0:00:33]} Nb6 {[%emt 0:02:38]} 11. O-O {[%emt 0:00:17] The position is equal.} Qc7 {[%emt 0:02:54] [#]} 12. Ne1 $146 {[%emt 0:07:22]} ({Predecessor:} 12. Nh2 O-O-O 13. Ng4 Be7 14. Ne3 f6 15. f4 Rhg8 16. Nf3 Rdf8 17. Re1 Bd8 18. Rb1 {0-1 (62) Mayeregger,A (2122)-Stepanencu,N (2240) Chess.com INT 2021}) 12... O-O-O {[%emt 0:02:41]} 13. f4 {[%emt 0:01:23]} f6 {[%emt 0:00:51]} 14. Nef3 {[%emt 0:07:00]} h5 {[%emt 0:03:01]} ({Better is} 14... Kb8 $15) 15. Re1 {[%emt 0:03:00]} Re8 {[%emt 0:01:50]} 16. Nf1 {[%emt 0:03:25][%cal Of4f5]} f5 {[%emt 0:07:44]} (16... Ba4 $5 {[%cal Ra4d1]} 17. Qe2 Nb3 $11) 17. Be3 {[%emt 0:05:08]} Kb8 {[%emt 0:01:09]} 18. Qe2 {[%emt 0:04:43]} g6 {[%emt 0:01:14]} 19. Bf2 {[%emt 0:05:23]} Ka8 {[%emt 0:05:07]} 20. Ne3 {[%emt 0:01:39]} Na4 {[%emt 0:04:12]} 21. Bf1 {[%emt 0:05:16]} Rc8 {[%emt 0:05:45]} 22. Qc2 {[%emt 0:08:52]} Qb6 {[%emt 0:08:15]} 23. Rab1 {[%emt 0:00:47]} Qd8 {[%emt 0:02:18]} 24. Be2 {[%emt 0:02:16]} Qe8 {[%emt 0:00:30]} 25. Bd1 {[%emt 0:01:25]} Nb6 {[%emt 0:00:08]} 26. Qe2 {[%emt 0:01:19]} Ba4 {[%emt 0:00:24]} 27. Bxa4 {[%emt 0:01:04]} Nxa4 {[%emt 0:00:20]} 28. Qc2 {[%emt 0:01:33]} Nb3 {[%emt 0:03:34]} 29. Nd2 {[%emt 0:01:23]} Nxd2 {[%emt 0:01:33]} 30. Qxd2 {[%emt 0:00:03]} Rc6 {[%emt 0:01:17][%cal Bc8c6,Bc6b6,Bb6b3][%mdl 32]} 31. Rbc1 {[%emt 0:01:09]} Rb6 {[%emt 0:00:48]} 32. Rc2 {[%emt 0:00:36]} Rb3 {[%emt 0:01:09]} 33. Nd1 {[%emt 0:00:50]} Rh7 {[%emt 0:03:01]} 34. Be3 {[%emt 0:00:43]} Rc7 {[%emt 0:04:25]} 35. Qf2 {[%emt 0:01:36]} a5 {[%emt 0:01:33]} 36. Bc1 {[%emt 0:08:32]} b5 {[%emt 0:01:37]} 37. Re3 {[%emt 0:05:43]} Qd7 {[%emt 0:01:47]} 38. Bd2 {[%emt 0:02:34]} Ra7 {[%emt 0:01:08]} 39. Kg2 {[%emt 0:02:34]} Nb6 {[%emt 0:03:03]} 40. Qf3 {[%emt 0:01:43]} Nc8 {[%emt 0:00:44]} 41. Rc1 {[%emt 0:02:33]} Ne7 {[%emt 0:00:32]} 42. Ra1 {[%emt 0:00:55]} (42. Be1 $15 {deserves consideration.}) 42... Nc6 $17 {[%emt 0:00:33]} 43. Qf2 {[%emt 0:00:51]} b4 {[%emt 0:01:07][%cal Rb4a3] Black is more active.} 44. axb4 {[%emt 0:00:58]} axb4 {[%emt 0:00:07]} 45. Rxa7+ {[%emt 0:00:03]} (45. Rc1 $17 {might work better.}) 45... Qxa7 $19 {[%emt 0:00:08]} 46. Bc1 {[%emt 0:01:53]} Qa1 {[%emt 0:02:27]} 47. Qc2 {[%emt 0:01:17]} Kb7 {[%emt 0:03:19]} 48. Re2 {[%emt 0:00:59]} (48. Bd2 $142) 48... Na7 {[%emt 0:01:01][%cal Bc6a7,Ba7b5,Bb5a3][%mdl 32]} 49. Bd2 {[%emt 0:02:18]} Nb5 {[%emt 0:00:25]} 50. Rf2 {[%emt 0:04:45]} bxc3 {[%emt 0:00:47] Black is clearly winning.} 51. bxc3 {[%emt 0:00:24]} (51. Bxc3 $142 Bb4 52. Qd2) 51... Na3 {[%emt 0:00:34]} 52. Qc1 {[%emt 0:00:23]} Rb1 {[%emt 0:00:09] Weighted Error Value: White=0.29 (precise) /Black=0.05 (flawless)} 0-1

[Event "87th Spanish Championship 2022"]
[Site "Linares"]
[Date "2022.08.13"]
[Round "3.9"]
[White "Gines Esteo, Pedro Antonio"]
[Black "Massanet Massanet, Sebastian"]
[Result "1-0"]
[ECO "A22"]
[WhiteElo "2455"]
[BlackElo "2232"]
[Annotator "TA"]
[PlyCount "77"]
[EventDate "2022.08.11"]
[EventType "swiss"]
[EventCountry "ESP"]
[SourceTitle "playchess.com"]
[Source "ChessBase"]
[SourceQuality "1"]
[TimeControl "5400+30"]

{[%evp 9,77,62,77,77,79,64,81,79,89,95,93,93,87,86,83,81,121,58,72,56,75,21,12,-10,0,0,27,41,121,118,129,122,161,134,221,223,209,170,251,160,141,147,154,155,210,144,222,80,329,325,518,533,29983,29984,29984,29985,29985,29986,29986,29987,29987,29988,29988,29989,29989,5560,5654,5050,29979,5650]} 1. c4 {[%emt 0:00:04]} e5 {[%emt 0:02:15]} 2. Nc3 {[%emt 0:00:10]} Nf6 {[%emt 0:00:30]} 3. Nf3 {[%emt 0:00:05]} e4 {[%emt 0:01:28]} 4. Ng5 {[%emt 0:01:47]} c6 {[%emt 0:00:25]} 5. Ngxe4 {[%emt 0:02:41]} Nxe4 {[%emt 0:00:07]} 6. Nxe4 {[%emt 0:00:05] A22: English Opening: 1...e5 2 Nc3 Nf6.} d5 {[%emt 0:00:10]} 7. cxd5 {[%emt 0:00:10]} cxd5 {[%emt 0:00:08]} 8. Ng3 {[%emt 0:00:12] White is better.} (8. Qa4+ $2 Bd7 9. Qd4 dxe4 10. Qxe4+ Be7 $19) 8... h5 {[%emt 0:00:34] ...h4 is the strong threat.} 9. e3 {[%emt 0:07:56]} h4 {[%emt 0:00:58]} 10. Ne2 {[%emt 0:10:28]} Nc6 {[%emt 0:02:45] [#]} 11. d4 $1 {[%emt 0:00:29]} Bd6 {[%emt 0:03:58]} 12. Nc3 {[%emt 0:03:13]} Qf6 {[%emt 0:06:10] [#]} 13. Nxd5 $146 {[%emt 0:24:19]} ({Better is} 13. Bd3 $16) ({Predecessor:} 13. a3 Qg6 14. h3 O-O 15. Qf3 Na5 16. Qxd5 b6 17. Bd2 Bb7 18. Qa2 Rac8 19. b4 {1-0 (48) Stremavicius,T (2532)-Goh,W (2453) Chennai 2022}) 13... Qg6 $1 $14 {[%emt 0:02:48]} 14. Nc3 {[%emt 0:00:19]} Bf5 $1 {[%emt 0:05:21] Inhibits Qd3.} 15. Nb5 {[%emt 0:17:30]} (15. f3 $16) 15... Bb8 $11 {[%emt 0:21:43]} 16. d5 {[%emt 0:14:22]} Nb4 {[%emt 0:15:15] White must now prevent ...Nc2+.} 17. Nd4 {[%emt 0:00:18]} Nd3+ {[%emt 0:08:56]} 18. Ke2 $1 {[%emt 0:03:46]} (18. Bxd3 Bxd3 19. Nf3 Bc7 20. Qa4+ b5 $11) 18... Ne5 {[%emt 0:19:13]} (18... Qh5+ $14 19. f3 O-O) 19. Nxf5 $16 {[%emt 0:00:25]} Qxf5 {[%emt 0:00:17]} 20. Qa4+ {[%emt 0:00:54]} Ke7 {[%emt 0:01:43][%cal Oh4h3]} (20... b5 $2 21. Qxb5+ Qd7 22. Qxd7+ Nxd7 23. f4 $18) 21. f4 {[%emt 0:08:20]} Qg4+ {[%emt 0:04:05]} (21... Nd7 $16 22. b3 Re8) 22. Kf2 {[%emt 0:00:18]} h3 {[%emt 0:00:54][%cal Oe5d3]} 23. Qe4 {[%emt 0:01:50] Prevents Nd3+. aiming for g3.} ({Not} 23. gxh3 Qf3+ 24. Ke1 (24. Kg1 $2 Rh6 $19) 24... Qxh1 25. fxe5 Bxe5 26. Qb4+ Kf6 $17) 23... f5 {[%emt 0:01:31]} (23... Bd6 $142) 24. d6+ {[%emt 0:00:17]} Bxd6 {[%emt 0:00:17]} 25. Qxb7+ {[%emt 0:00:09]} Nd7 {[%emt 0:00:15]} 26. Be2 {[%emt 0:01:34]} Qg6 {[%emt 0:00:58]} (26... Qxg2+ $16 27. Qxg2 hxg2 28. Kxg2 Nf6) 27. Bb5 {[%emt 0:01:30]} Rad8 {[%emt 0:00:41]} (27... Qxg2+ $16 28. Qxg2 hxg2 29. Kxg2 Rh4) 28. Bd2 {[%emt 0:00:25]} (28. g3 $18 {and White stays clearly on top.}) 28... hxg2 $2 {[%emt 0:00:33] [#] Black cannot hold the game after this.} (28... Kf8 $16 {was necessary.} 29. Bxd7 Rxd7) 29. Rhg1 $1 $18 {[%emt 0:00:48] Dancing on a razor blade.} ({Less strong is} 29. Qxg2 Qxg2+ 30. Kxg2 Nf6 $16) 29... Rxh2 {[%emt 0:00:29]} (29... Qe6 $142 30. Rxg2 (30. Qxg2 Rh7 $18) 30... g6) 30. Ba5 {[%emt 0:00:26]} Bc5 {[%emt 0:00:30]} 31. Bxd8+ {[%emt 0:00:08] A strong pair of Bishops.} Kf8 {[%emt 0:00:01]} 32. Qxd7 {[%emt 0:00:52]} Bxe3+ {[%emt 0:00:19]} 33. Kxe3 {[%emt 0:00:30][%cal Bf2e3,Be3e2,Be2d3,Bd3c2][%mdl 32]} Qg3+ {[%emt 0:00:31]} 34. Ke2 {[%emt 0:00:25][%csl Gb5][%cal Rd7e8]} Qg4+ {[%emt 0:00:24]} 35. Kd3 {[%emt 0:00:40][%csl Gb5][%cal Rd7e8]} Qf3+ {[%emt 0:01:16]} 36. Kc2 {[%emt 0:00:08][%csl Gb5][%cal Rd7e8]} Qf2+ {[%emt 0:00:28]} 37. Qd2 {[%emt 0:00:26]} (37. Kb3 $142 Qe3+ 38. Kb4 Qe4+ 39. Bc4 a5+ 40. Kb5 Qxc4+ 41. Kxc4 Rh6 42. Rxg2) 37... Qc5+ {[%emt 0:00:15]} 38. Qc3 {[%emt 0:00:11]} Qxb5 {[%emt 0:00:41]} 39. Qa3+ {[%emt 0:00:05] Weighted Error Value: White=0.15 (very precise) /Black=0.72} (39. Rae1 $142 Qa4+ 40. Kb1 Kg8 41. Re7 Qe4+ 42. Rxe4 fxe4 43. Qc4+ Kh8 44. Qxe4) 1-0